[Event "68th HUN-ch Men 2018"]
[Site "Budapest"]
[Date "2018.12.08"]
[Round "3.2"]
[White "Aczel, Gergely"]
[Black "Banusz, Tamas"]
[Result "1-0"]
[ECO "D10"]
[WhiteElo "2549"]
[BlackElo "2612"]
[Annotator "RC"]
[PlyCount "139"]
[EventDate "2018.??.??"]
[EventCountry "HUN"]
[SourceTitle "playchess.com"]
[Source "ChessBase"]
[SourceQuality "1"]
[TimeControl "40/5400+30:1800+30"]

1. d4 {[%emt 0:00:03]} d5 {[%emt 0:11:01]} 2. c4 {[%emt 0:00:11]} c6 {[%emt 0:00:05]} 3. cxd5 {[%emt 0:00:05]} cxd5 {[%emt 0:00:05]} 4. Bf4 {[%emt 0:00:04]} Nf6 {[%emt 0:00:11]} 5. Nc3 {[%emt 0:00:06]} Nc6 {[%emt 0:00:06]} 6. e3 {[%emt 0:00:04]} Bf5 {[%emt 0:00:06]} 7. Qb3 {[%emt 0:00:16]} Na5 {[%emt 0:00:08]} 8. Qa4+ {[%emt 0:00:05]} Bd7 {[%emt 0:00:08]} 9. Qc2 {[%emt 0:00:05]} e6 {[%emt 0:00:10]} 10. Nf3 {[%emt 0:00:05]} Be7 {[%emt 0:00:31]} 11. Bd3 {[%emt 0:00:08]} Nc6 {[%emt 0:00:19]} 12. a3 {[%emt 0:00:07]} Nh5 {[%emt 0:00:10]} 13. Be5 {[%emt 0:00:04]} f6 {[%emt 0:00:11]} 14. Bg3 {[%emt 0:00:02]} f5 {[%emt 0:00:18]} 15. Ne5 {[%emt 0:00:03]} O-O {[%emt 0:00:28]} 16. Nxc6 {[%emt 0:00:14]} Bxc6 {[%emt 0:00:04]} 17. Qe2 {[%emt 0:00:12]} Nf6 {[%emt 0:04:07]} 18. f3 {[%emt 0:00:18]} Bd6 {[%emt 0:02:52]} 19. Bxd6 {[%emt 0:00:02]} Qxd6 {[%emt 0:00:06]} 20. O-O {[%emt 0:00:08]} g6 {[%emt 0:06:43]} 21. Qd2 {[%emt 0:03:43]} Rfe8 {[%emt 0:02:24]} 22. Rac1 {[%emt 0:08:29]} a6 {[%emt 0:05:37]} 23. Rfe1 {[%emt 0:12:09]} Rac8 {[%emt 0:05:13]} 24. Ne2 {[%emt 0:01:03]} Bd7 {[%emt 0:01:31]} 25. Nf4 {[%emt 0:16:44]} Rxc1 {[%emt 0:00:30]} 26. Rxc1 {[%emt 0:00:30]} Kf7 {[%emt 0:00:30]} 27. h3 {[%emt 0:00:30]} g5 {[%emt 0:00:30]} 28. Ne2 {[%emt 0:00:30]} h6 {[%emt 0:00:30]} 29. Bb1 {[%emt 0:25:59]} Bb5 {[%emt 0:21:54]} 30. Nc3 {[%emt 0:00:13]} Bc6 {[%emt 0:01:53]} 31. Re1 {[%emt 0:01:00]} Rd8 {[%emt 0:04:11]} 32. Na2 {[%emt 0:05:14]} Bb5 {[%emt 0:03:17]} 33. Rc1 {[%emt 0:00:23]} h5 {[%emt 0:05:33]} 34. Qc2 {[%emt 0:07:41]} Rd7 {[%emt 0:05:18]} 35. Nc3 {[%emt 0:05:24]} g4 {[%emt 0:04:23]} 36. f4 {[%emt 0:05:41]} Bc6 {[%emt 0:02:11]} 37. Qf2 {[%emt 0:00:23]} Rd8 {[%emt 0:02:01]} 38. Bd3 {[%emt 0:00:43]} Rg8 {[%emt 0:01:12]} 39. Qh4 {[%emt 0:00:45]} Qf8 {[%emt 0:04:01]} 40. Rc2 {[%emt 0:00:00]} Qg7 {[%emt 0:00:00]} 41. Kf1 {[%emt 0:03:39]} Ke7 {[%emt 0:09:58]} 42. Ke1 {[%emt 0:02:56]} Kd7 {[%emt 0:02:35]} 43. b4 {[%emt 0:00:50]} Qe7 {[%emt 0:02:21]} 44. Kd1 {[%emt 0:03:33]} Rg6 {[%emt 0:02:01]} 45. Kc1 {[%emt 0:00:54]} gxh3 {[%emt 0:01:32]} 46. Qxh3 {[%emt 0:01:28]} Qg7 {[%emt 0:01:01]} 47. Re2 {[%emt 0:11:29]} Rg3 {[%emt 0:00:48]} 48. Qh4 {[%emt 0:00:14]} Ke7 {[%emt 0:01:08]} 49. Qh1 {[%emt 0:03:04]} Qg4 {[%emt 0:02:11]} 50. Kd2 {[%emt 0:00:13]} h4 {[%emt 0:04:31]} 51. a4 {[%emt 0:01:33]} Kf7 {[%emt 0:03:58]} 52. b5 {[%emt 0:01:25]} axb5 {[%emt 0:00:01]} 53. axb5 {[%emt 0:00:05]} Bd7 {[%emt 0:00:07]} 54. Na4 {[%emt 0:04:41]} Nh5 {[%emt 0:03:24]} 55. Nc5 {[%emt 0:01:25]} Bc8 {[%emt 0:00:23]} 56. b6 {[%emt 0:04:05]} Kf6 {[%emt 0:02:18]} 57. Rf2 {[%emt 0:00:32]} h3 {[%emt 0:00:44]} 58. gxh3 {[%emt 0:00:09]} Rxh3 {[%emt 0:01:57]} 59. Qa1 {[%emt 0:02:56]} Qg8 {[%emt 0:04:06]} 60. Re2 {[%emt 0:01:00]} Qd8 {[%emt 0:01:16]} 61. Qa7 {[%emt 0:00:36]} Rh1 {[%emt 0:01:42]} 62. Rg2 {[%emt 0:01:21]} Qd6 {[%emt 0:01:17]} 63. Kc2 {[%emt 0:02:22]} Ng7 {[%emt 0:00:41]} 64. Qa3 {[%emt 0:00:30]} Ne8 {[%emt 0:00:34]} 65. Bb5 {[%emt 0:00:42]} Qe7 {[%emt 0:00:10]} 66. Bxe8 {[%emt 0:00:32]} Qxe8 {[%emt 0:00:01]} 67. Kd2 {[%emt 0:00:49]} Rb1 {[%emt 0:01:33]} 68. Nd3 {[%emt 0:00:51]} Rxb6 {[%emt 0:00:07]} 69. Ne5 {[%emt 0:00:10]} Rc6 {[%emt 0:00:44]} 70. Rg6+ {[%emt 0:00:32]} 1-0